Workbook

Sheet Vyúčtovanie výdavkov
A1: NÁZOV SPOLOČNOSTI
A2: VYÚČTOVANIE VÝDAVKOV
B4: ZAMESTNANEC: | C4: Petra Chvojková | G4: SCHVÁLIL:
B5: ODDELENIE: | C5: Predaj
B6: KONIEC TÝŽDŇA: | C6: 2013-03-07 | G6: DÁTUM:
B7: PREPLÁCANÉ NÁKLADY NA DOPRAVU: | C7: 0.67 €
C9: =UPPER(TEXT(C10,"dddd")) -> PIATOK | D9: =UPPER(TEXT(D10,"dddd")) -> SOBOTA | E9: NEDEĽA | F9: PONDELOK | G9: UTOROK | H9: STREDA | I9: ŠTVRTOK
B10: PREPRAVA | C10: =KoniecTýždňa-6 -> 2013-03-01 | D10: =KoniecTýždňa-5 -> 2013-03-02 | E10: =KoniecTýždňa-4 -> 2013-03-03 | F10: =KoniecTýždňa-3 -> 2013-03-04 | G10: =KoniecTýždňa-2 -> 2013-03-05 | H10: =KoniecTýždňa-1 -> 2013-03-06 | I10: =KoniecTýždňa -> 2013-03-07 | J10: CELKOM
B11: Najazdené kilometre | C11: 145 | J11: =SUM(doprava[[#This Row],[1. deň]:[7. deň]]) -> 145
B12: Náhrada nákladov podľa prejdených kilometrov | C12: =C11*MieraPrejdenejVzdialenosti -> 97.15 € | D12: 0.00 € | E12: 0.00 € | F12: 0.00 € | G12: 0.00 € | H12: 0.00 € | I12: 0.00 € | J12: =SUM(doprava[[#This Row],[1. deň]:[7. deň]]) -> 97.15 €
B13: Parkovanie a poplatky | F13: 17.00 € | J13: =SUM(doprava[[#This Row],[1. deň]:[7. deň]]) -> 17.00 €
B14: Prenájom auta | C14: 79.00 € | F14: 79.00 € | J14: =SUM(doprava[[#This Row],[1. deň]:[7. deň]]) -> 158.00 €
B15: Taxi / Limuzína | J15: =SUM(doprava[[#This Row],[1. deň]:[7. deň]]) -> 0.00 €
B16: Iné (vlak alebo autobus) | J16: =SUM(doprava[[#This Row],[1. deň]:[7. deň]]) -> 0.00 €
B17: Letenky | F17: 235.00 € | J17: =SUM(doprava[[#This Row],[1. deň]:[7. deň]]) -> 235.00 €
B18: CELKOM | C18: =SUBTOTAL(109,C12:C17) -> 176.15 € | D18: =SUBTOTAL(109,D12:D17) -> 0.00 € | F18: =SUBTOTAL(109,F12:F17) -> 331.00 € | G18: =SUBTOTAL(109,G12:G17) -> 0.00 € | H18: =SUBTOTAL(109,H12:H17) -> 0.00 € | I18: =SUBTOTAL(109,I12:I17) -> 0.00 € | J18: =SUM(J12:J17) -> 507.15 €
B20: UBYTOVANIE A STRAVA
B21: Ubytovanie | C21: 145.00 € | J21: =SUM(UbytovanieStrava[[#This Row],[1. deň]:[7. deň]]) -> 145.00 €
B22: Raňajky | C22: 11.49 € | J22: =SUM(UbytovanieStrava[[#This Row],[1. deň]:[7. deň]]) -> 11.49 €
B23: Obed | C23: 12.00 € | J23: =SUM(UbytovanieStrava[[#This Row],[1. deň]:[7. deň]]) -> 12.00 €
B24: Večera | C24: 17.00 € | J24: =SUM(UbytovanieStrava[[#This Row],[1. deň]:[7. deň]]) -> 17.00 €
B25: Občerstvenie | C25: =C24*MieraPrejdenejVzdialenosti -> 11.39 € | J25: =SUM(UbytovanieStrava[[#This Row],[1. deň]:[7. deň]]) -> 11.39 €
B26: Medzisúčet za stravu | C26: =SUM(C22:C24) -> 40.49 € | D26: =SUM(D22:D24) -> 0.00 € | E26: 0.00 € | F26: 0.00 € | G26: 0.00 € | H26: 0.00 € | I26: 0.00 € | J26: =SUM(UbytovanieStrava[[#This Row],[1. deň]:[7. deň]]) -> 40.49 €
B27: CELKOM | C27: =SUBTOTAL(109,C21,C26) -> 185.49 € | D27: =SUBTOTAL(109,D21,D26) -> 0.00 € | E27: =SUBTOTAL(109,E21,E26) -> 0.00 € | F27: =SUBTOTAL(109,F21,F26) -> 0.00 € | G27: =SUBTOTAL(109,G21,G26) -> 0.00 € | H27: 0.00 € | I27: =SUBTOTAL(109,I21,I26) -> 0.00 € | J27: =SUBTOTAL(109,J21,J26) -> 185.49 €
B29: RÔZNE
B30: Zásoby | J30: =SUM(Rôzne[[#This Row],[1. deň]:[7. deň]]) -> 0.00 €
B31: Vybavenie | J31: =SUM(Rôzne[[#This Row],[1. deň]:[7. deň]]) -> 0.00 €
B32: Telefón, fax, internet | J32: =SUM(Rôzne[[#This Row],[1. deň]:[7. deň]]) -> 0.00 €
B33: Iné* | J33: =SUM(Rôzne[[#This Row],[1. deň]:[7. deň]]) -> 0.00 €
B34: Zábava* | F34: 199.00 € | J34: =SUM(Rôzne[[#This Row],[1. deň]:[7. deň]]) -> 199.00 €
B35: CELKOM | C35: =SUBTOTAL(109,Rôzne[1. deň]) -> 0.00 € | D35: =SUBTOTAL(109,Rôzne[2. deň]) -> 0.00 € | E35: =SUBTOTAL(109,Rôzne[3. deň]) -> 0.00 € | F35: =SUBTOTAL(109,Rôzne[4. deň]) -> 199.00 € | G35: =SUBTOTAL(109,Rôzne[5. deň]) -> 0.00 € | H35: =SUBTOTAL(109,Rôzne[6. deň]) -> 0.00 € | I35: =SUBTOTAL(109,Rôzne[7. deň]) -> 0.00 € | J35: =SUBTOTAL(109,Rôzne[Celkom]) -> 199.00 €
B37: CELKOVÝ SÚČET | C37: =SUM(Rôzne[[#Totals],[1. deň]],UbytovanieStrava[[#Totals],[1. deň]],doprava[[#Totals],[1. deň]]) -> 361.64 € | D37: =SUM(Rôzne[[#Totals],[2. deň]],UbytovanieStrava[[#Totals],[2. deň]],doprava[[#Totals],[2. deň]]) -> 0.00 € | E37: =SUM(Rôzne[[#Totals],[3. deň]],UbytovanieStrava[[#Totals],[3. deň]],doprava[[#Totals],[3. deň]]) -> 0.00 € | F37: =SUM(Rôzne[[#Totals],[4. deň]],UbytovanieStrava[[#Totals],[4. deň]],doprava[[#Totals],[4. deň]]) -> 530.00 € | G37: =SUM(Rôzne[[#Totals],[5. deň]],UbytovanieStrava[[#Totals],[5. deň]],doprava[[#Totals],[5. deň]]) -> 0.00 € | H37: =SUM(Rôzne[[#Totals],[6. deň]],UbytovanieStrava[[#Totals],[6. deň]],doprava[[#Totals],[6. deň]]) -> 0.00 € | I37: =SUM(Rôzne[[#Totals],[7. deň]],UbytovanieStrava[[#Totals],[7. deň]],doprava[[#Totals],[7. deň]]) -> 0.00 € | J37: =SUM(Rôzne[[#Totals],[Celkom]],UbytovanieStrava[[#Totals],[Celkom]],doprava[[#Totals],[Celkom]]) -> 891.64 €
J39: CELKOVÉ VÝDAVKY
B40: *Pracovný účel položiek „Zábava“ a „Iné“: | J40: =SUM(J18,J27,J35) -> 891.64 €
J41: ZÁLOHA
J43: CELKOVÁ NÁHRADA
J44: =J40-J42 -> 891.64 €
J45: Priložte všetky potvrdenky.
